bitfinex-derivatives/quotes_ETHF0:USTF0_20251211
["timestamp","ask_amount","ask_price","bid_price","bid_amount"]
[1765412269574,1.8146,3322.5,3322.4,1.8904606]
[1765412270173,1.3895,3322.5,3322.4,2.5640606]
[1765412270977,3.64950972,3323.0,3322.5,0.15046]
[1765412271174,2.44578726,3322.9,3322.8,0.6772]
[1765412271676,1.3895,3322.8,3322.7,1.7400006]
[1765412271874,2.44578726,3322.8,3322.7,1.7400006]
[1765412272079,2.44578726,3322.8,3322.5,1.2132606]
[1765412272270,1.3895,3322.6,3322.5,2.5640606]
[1765412272475,1.05628726,3322.6,3322.5,2.9808606]
[1765412274083,1.05628726,3322.6,3322.5,1.50126]
[1765412274084,2.44578726,3322.6,3322.5,1.50126]
[1765412274278,2.44578726,3322.6,3322.5,2.5640606]
[1765412279285,2.44578726,3322.6,3322.5,1.8904606]
[1765412279878,2.44578726,3322.6,3322.5,2.5593606]
[1765412280182,1.4356,3322.1,3322.0,3.2078]
[1765412280380,1.1456,3322.5,3321.9,1.0628006]
[1765412280579,1.8631,3322.5,3322.4,2.4422006]
[1765412280781,2.92212534,3322.5,3322.4,2.4422006]
[1765412281176,1.77712534,3322.5,3322.4,2.5926606]
[1765412281884,1.05902534,3322.5,3322.4,2.5926606]
[1765412283086,5.08510972,3323.0,3322.9,0.7105]
[1765412283284,6.14400585,3323.0,3322.9,0.7105]
[1765412283680,6.14400585,3323.0,3322.9,1.3794]
[1765412284086,6.14400585,3323.0,3322.9,0.7105]
[1765412284686,6.14400585,3323.0,3322.9,1.3794]
[1765412285786,2.93620585,3323.0,3322.9,1.3794]
[1765412286186,2.93620585,3323.0,3322.9,0.7105]
[1765412286393,1.4356,3322.9,3322.8,0.86094]
[1765412286588,2.49449613,3322.9,3322.8,0.86094]
[1765412288184,2.49449613,3322.9,3322.8,0.15044]
[1765412289289,2.49449613,3322.9,3322.8,1.52984]
[1765412289883,2.49449613,3322.9,3322.8,0.86094]
[1765412290088,2.49449613,3322.9,3322.8,1.52984]
[1765412290483,2.49449613,3322.9,3322.8,0.15044]
[1765412290880,2.49449613,3322.9,3322.8,0.88034]
[1765412291292,2.49449613,3322.9,3322.8,1.61834]
[1765412291690,1.77699613,3322.9,3322.8,1.61834]
[1765412291886,1.05889613,3322.9,3322.8,1.61834]
[1765412292088,1.72699613,3322.9,3322.8,1.61834]
[1765412292391,0.6681,3322.9,3322.8,1.61834]
[1765412293095,2.43499644,3322.9,3322.8,1.61834]
[1765412294398,1.3753,3322.9,3322.8,1.61834]
[1765412294593,2.43469797,3322.9,3322.8,0.15044]
[1765412295096,2.43469797,3322.9,3322.8,1.2132406]
[1765412296798,2.43469797,3322.9,3322.8,0.15044]
[1765412298592,2.43469797,3322.9,3322.4,3.2078]
[1765412298593,1.8066,3322.5,3322.4,3.2078]
[1765412298799,1.3753,3322.3,3322.2,0.15047]
[1765412299096,2.43469797,3322.3,3322.2,0.15047]
[1765412300996,1.8066,3322.0,3321.9,1.03582257]
[1765412301198,1.8066,3322.0,3321.9,1.76572257]
[1765412301698,1.8066,3322.0,3321.9,2.50372257]
[1765412301998,1.3753,3322.0,3321.9,2.65420257]
[1765412302194,3.6391,3322.5,3322.0,2.04358]
[1765412302195,0.6681,3322.1,3322.0,2.04358]
[1765412302396,5.0144,3322.5,3322.4,0.7299]
[1765412302703,6.07293588,3322.5,3322.4,0.7299]
[1765412303301,1.3753,3322.3,3322.2,1.76572257]
[1765412303497,2.43383588,3322.3,3322.2,1.76572257]
[1765412304099,2.43383588,3322.3,3322.2,2.50372257]
[1765412305094,2.43383588,3322.3,3322.2,2.65419257]
[1765412305802,1.72663588,3322.3,3322.2,2.65419257]
[1765412306002,0.6681,3322.3,3322.2,2.65419257]
[1765412306600,5.0144,3322.5,3322.4,1.4679]
[1765412306801,6.07028769,3322.5,3322.4,1.4679]
[1765412307200,6.07028769,3322.5,3322.4,0.7299]
[1765412307403,1.3753,3322.3,3322.2,2.65419257]
[1765412307704,2.43118769,3322.3,3322.2,1.91619257]
[1765412307899,2.43118769,3322.3,3322.2,0.15047]
[1765412311505,1.3699,3321.6,3321.5,4.5717]
[1765412312005,1.3699,3321.6,3321.5,3.2078]
[1765412312199,1.803,3321.5,3321.4,2.40193821]
[1765412312395,4.5777,3321.6,3321.5,1.3639]
[1765412312598,1.803,3321.5,3321.4,1.18854821]
[1765412312900,1.803,3321.5,3321.4,0.15272564]
[1765412313304,2.85517376,3321.5,3321.4,0.15272564]
[1765412313807,2.85517376,3321.5,3321.4,0.00221564]
[1765412316408,2.85392857,3321.5,3321.4,0.00221564]
[1765412319410,1.803,3321.5,3321.4,0.00221564]
[1765412319804,1.803,3321.5,3321.4,1.36611564]
[1765412320602,1.3699,3321.5,3321.4,1.36611564]
[1765412321101,0.6665,3321.5,3321.4,1.51662564]
[1765412321607,1.3699,3321.5,3321.4,1.51662564]
[1765412321910,0.6665,3321.5,3321.4,1.51662564]
[1765412322508,1.3699,3321.5,3321.4,1.51662564]
[1765412323705,1.803,3321.5,3321.4,0.15272564]
[1765412324414,1.803,3321.5,3321.4,1.51662564]
[1765412324714,1.803,3321.5,3321.4,0.15272564]
[1765412326810,1.803,3321.5,3321.4,0.00221564]
[1765412327015,2.8523321,3321.5,3321.4,0.00221564]
[1765412328421,1.803,3321.5,3321.4,0.67631564]
[1765412328612,1.803,3321.5,3321.4,1.36611564]
[1765412328913,0.6665,3321.5,3321.4,1.51662564]
[1765412329106,1.803,3322.0,3321.9,1.3639]
[1765412329310,1.803,3322.0,3321.9,0.6741]
[1765412329510,0.6665,3322.0,3321.9,1.51438]
[1765412329804,3.8743,3322.1,3322.0,1.51438]
[1765412330013,4.92439815,3322.1,3322.0,1.51438]
[1765412330513,4.5777,3322.1,3322.0,1.51438]
[1765412331818,4.5777,3322.1,3322.0,0.15048]
[1765412332118,4.5777,3322.1,3322.0,1.51438]
[1765412333917,4.5777,3322.1,3322.0,0.15048]
[1765412335917,5.63007616,3322.1,3322.0,0.15048]
[1765412336316,1.803,3321.5,3321.4,0.00221564]
[1765412340822,1.4043,3321.5,3321.4,1.49652564]
[1765412341123,1.8193,3321.5,3321.4,1.49652564]
[1765412341423,0.6665,3321.5,3321.4,1.49652564]
[1765412341610,0.7378,3321.6,3321.5,1.5417]
[1765412341813,1.4544,3321.6,3321.5,1.5417]
[1765412345123,1.1709,3322.0,3321.9,1.3912]
[1765412345327,2.94072763,3322.0,3321.9,0.7215]
[1765412345627,2.94072763,3322.0,3321.9,0.87198]
[1765412345826,5.0935,3322.5,3322.4,0.7215]
[1765412346032,1.4544,3322.2,3322.1,1.54167]
[1765412346325,2.50780712,3322.2,3322.1,1.54167]
[1765412347529,2.50780712,3322.2,3322.1,0.15047]
[1765412347721,1.4544,3321.6,3321.5,1.5417]
[1765412348024,1.8694,3322.0,3321.9,1.54168]
[1765412348230,1.4544,3322.2,3322.1,1.54167]
[1765412348534,1.05343068,3322.2,3322.1,1.54167]
[1765412348722,5.0935,3322.5,3322.4,1.54166]
[1765412348921,6.14705183,3322.5,3322.4,0.15046]
[1765412351829,1.8262,3322.0,3321.9,3.2078]
[1765412352030,1.8262,3322.0,3321.9,3.35828]
[1765412352226,0.6949,3322.0,3321.9,4.69578]
[1765412352427,1.4235,3322.3,3322.2,1.3375]
[1765412352633,1.4235,3322.3,3321.9,3.2078]
[1765412352825,1.8262,3322.0,3321.9,3.35828]
[1765412353021,6.08644986,3322.0,3321.9,0.15048]
[1765412354646,1.8262,3321.5,3321.4,0.00221564]
[1765412356948,2.87856837,3321.5,3321.4,0.00221564]
[1765412358942,0.4027,3321.0,3320.7,3.2078]
[1765412359148,1.4235,3320.8,3320.7,3.2078]
[1765412359649,1.4235,3320.6,3320.5,0.15055]
[1765412359948,2.51109617,3320.6,3320.5,0.15301396]
[1765412361144,2.51109617,3320.6,3320.5,0.82331396]
[1765412361445,2.51109617,3320.6,3320.5,0.15301396]
[1765412362352,1.42735711,3320.6,3320.5,0.15301396]
[1765412363047,1.42735711,3320.6,3320.5,0.00246396]
[1765412363949,2.51119691,3320.6,3320.5,0.00246396]
[1765412364346,5.71899691,3320.6,3320.5,0.00246396]
[1765412366355,1.4235,3320.3,3320.2,0.00451671]
[1765412366652,1.4235,3319.7,3319.6,1.48809]
[1765412366843,0.6949,3319.7,3319.6,1.48809]
[1765412367045,1.4235,3319.7,3319.6,1.48809]
[1765412367245,1.4235,3319.7,3319.6,1.49069423]
[1765412367653,1.4235,3319.7,3319.6,0.82349423]
[1765412367848,5.034,3320.0,3319.9,1.3375]
[1765412368650,5.034,3320.0,3319.9,0.6703]
[1765412369349,0.7086,3319.9,3319.8,0.15058]
[1765412369655,1.4318,3319.9,3319.8,0.87088]
[1765412369848,1.4318,3319.7,3319.6,0.00260423]
[1765412370656,1.4318,3319.4,3319.3,0.00451671]
[1765412370857,1.4318,3318.7,3318.6,0.15063]
[1765412371055,1.4318,3318.7,3318.6,1.58353]
[1765412371560,1.4318,3318.7,3318.6,1.58707161]
[1765412371754,1.84371671,3319.0,3318.9,0.7203]
[1765412371959,1.84371671,3319.0,3318.9,0.87092]
[1765412372161,1.84371671,3319.0,3318.9,1.58352]
[1765412372355,1.84371671,3319.0,3318.9,0.87092]
[1765412372562,1.84371671,3319.0,3318.9,0.15062]
[1765412373053,5.05151671,3319.0,3318.9,0.15062]
[1765412373255,1.4318,3318.3,3318.2,1.58355]
[1765412373847,1.4318,3318.2,3318.1,3.2078]
[1765412374051,1.4318,3317.8,3317.7,1.58357]
[1765412374247,1.8392,3318.0,3317.9,1.4329]
[1765412374452,0.7086,3318.0,3317.9,1.58357]
[1765412374651,0.71227127,3318.0,3317.9,1.58357]
[1765412375252,0.00367127,3318.0,3317.9,4.79137]
[1765412375658,1.84287127,3318.0,3317.9,0.15067]
[1765412376258,1.4318,3317.8,3317.7,0.0008047]
[1765412376756,1.4318,3317.8,3317.7,1.4337047]
[1765412376957,1.4318,3317.8,3317.7,0.7211047]
[1765412377357,1.4318,3317.8,3317.7,0.0008047]
[1765412377761,0.00367127,3318.0,3317.9,1.58357]
[1765412377956,0.00367127,3318.0,3317.9,4.79137]
[1765412378561,1.4318,3318.7,3318.6,1.4329]
[1765412378763,0.7086,3318.7,3318.6,1.4329]
[1765412379361,1.08444058,3318.9,3318.6,1.58353]
[1765412379554,0.7086,3318.7,3318.6,0.87093]
[1765412379756,0.71122648,3318.7,3318.6,1.58353]
[1765412380059,1.43442648,3318.7,3318.6,0.87093]
[1765412380267,1.43442648,3318.7,3318.6,0.15063]
[1765412382264,2.51886797,3318.7,3318.6,0.15063]
[1765412382864,2.51886797,3318.7,3318.6,1.58353]
[1765412383061,1.79566797,3318.7,3318.6,1.58353]
[1765412383365,2.51885423,3318.7,3318.6,0.15063]
[1765412383567,2.51885423,3318.7,3318.6,0.87093]
[1765412383861,1.08705423,3318.7,3318.6,1.58353]
[1765412384255,0.00262648,3318.7,3318.6,1.58353]
[1765412385069,0.00262648,3318.7,3318.6,7.58353]
[1765412385268,1.8392,3319.5,3319.4,0.7203]
[1765412385474,0.7086,3319.1,3319.0,2.01442]
[1765412385659,2.51601431,3319.1,3319.0,1.58352]
[1765412385971,2.51601431,3319.1,3319.0,0.15062]
[1765412386264,2.51856179,3319.1,3319.0,0.15062]
[1765412387268,4.12197048,3319.1,3319.0,0.15062]
[1765412387765,1.4318,3318.8,3318.7,0.00451671]
[1765412387973,2.51601431,3318.8,3318.7,0.00451671]
[1765412390272,7.8595566,3318.8,3318.7,0.00451671]
[1765412392172,1.79281431,3318.8,3318.7,1.58804671]
[1765412392366,1.08421431,3318.8,3318.7,1.58804671]
[1765412392672,3.39780673,3318.8,3318.7,1.58804671]
[1765412392870,4.12100673,3318.8,3318.7,0.87544671]
[1765412393469,4.12100673,3318.8,3318.7,1.58804671]
[1765412393669,4.12100673,3318.8,3318.7,0.87544671]
[1765412393969,4.12100673,3318.8,3318.7,1.58804671]
[1765412394370,2.51601431,3318.8,3318.7,1.58804671]
[1765412394771,2.51601431,3318.8,3318.7,0.15514671]
[1765412394970,2.51601431,3318.8,3318.7,0.87544671]
[1765412395380,2.51601431,3318.8,3318.7,1.58804671]
[1765412396579,2.51601431,3318.8,3318.7,0.87544671]
[1765412397377,1.08421431,3318.8,3318.7,1.58804671]
[1765412397569,1.79281431,3318.8,3318.7,1.58804671]
[1765412397771,2.51601431,3318.8,3318.7,1.58804671]
[1765412398573,2.51601431,3318.8,3318.7,0.87544671]
[1765412399774,2.51601431,3318.8,3318.7,1.57244671]
[1765412400174,4.6517566,3318.8,3318.7,0.15514671]
[1765412400472,2.51601431,3318.8,3318.7,0.15514671]
[1765412401176,4.6622864,3318.8,3318.7,0.85284671]
[1765412401479,1.08421431,3318.8,3318.7,1.54984671]
[1765412401677,1.78711431,3318.8,3318.7,1.54984671]
[1765412401884,2.47181431,3318.8,3318.7,1.54984671]
[1765412402077,1.08421431,3318.8,3318.7,1.54984671]
[1765412402278,2.69409774,3318.8,3318.7,1.54984671]
[1765412402682,3.39699774,3318.8,3318.7,1.54984671]
[1765412402982,4.08169774,3318.8,3318.7,0.15514671]
[1765412403283,2.694159,3318.8,3318.7,1.54984671]
[1765412403484,1.08421431,3318.8,3318.7,1.54984671]
[1765412403784,4.6180864,3318.8,3318.7,0.15514671]
[1765412404481,2.47181431,3318.8,3318.7,0.15514671]
[1765412404683,4.61836929,3318.8,3318.7,0.15514671]
[1765412405586,1.78711431,3318.8,3318.7,1.54984671]
[1765412406679,2.47181431,3318.8,3318.7,1.54984671]
[1765412406879,1.78711431,3318.8,3318.7,1.54984671]
[1765412407076,2.47181431,3318.8,3318.7,0.15514671]
[1765412409679,2.47181431,3318.8,3317.7,3.9063047]
[1765412409680,0.7029,3317.8,3317.7,3.9063047]
[1765412409883,2.47181431,3317.8,3317.7,4.7539747]
[1765412410278,2.47181431,3317.8,3317.7,3.3592747]
[1765412410787,2.47181431,3317.8,3317.7,4.0569747]
[1765412411085,2.47181431,3317.8,3317.7,3.3592747]
[1765412411883,2.47181431,3317.8,3317.7,4.7728747]
[1765412412083,1.08421431,3317.8,3317.7,4.7728747]
[1765412412585,5.0379,3319.0,3318.9,0.6977]
[1765412412977,1.4203,3318.9,3318.8,0.15062]
[1765412415687,1.4203,3318.3,3318.2,4.6214]
[1765412415890,0.7233,3318.7,3318.6,1.56423]
[1765412416391,5.0379,3319.0,3318.9,1.4136]
[1765412416794,5.0379,3319.0,3318.9,0.6977]
[1765412416987,1.4203,3318.8,3318.7,0.15063]
[1765412417196,0.7233,3318.8,3318.7,1.56423]
[1765412417393,1.4203,3318.0,3317.9,4.77207]
[1765412417587,1.4203,3318.2,3318.1,1.56425]
[1765412418807,1.4203,3318.2,3318.1,0.15065]
[1765412419007,1.4203,3318.2,3318.1,0.84835]
[1765412419506,1.4203,3318.2,3318.1,0.15065]
[1765412420603,1.4203,3318.2,3318.1,0.84835]
[1765412420799,1.4203,3318.2,3318.1,0.15065]
[1765412421003,1.4203,3317.8,3317.7,0.0008047]
[1765412422103,1.4203,3317.8,3317.7,0.6985047]
[1765412422409,1.4203,3317.8,3317.7,0.0008047]
[1765412423415,1.4203,3317.8,3317.7,1.5650747]
[1765412423608,1.4203,3317.8,3317.7,0.8491747]
[1765412423814,1.4203,3317.8,3317.7,0.1514747]
[1765412425215,1.4203,3317.8,3317.7,0.0008047]
[1765412425503,2.49304102,3317.8,3317.7,0.0008047]
[1765412425705,0.697,3316.6,3316.5,0.15073]
[1765412425903,0.697,3316.6,3315.0,0.4099]
[1765412425904,1.4203,3316.2,3315.6,3.2078]
[1765412426208,0.7233,3316.1,3316.0,1.56435]
[1765412426808,0.72613083,3316.1,3316.0,1.56762261]
[1765412427009,0.72613083,3316.1,3316.0,1.97752261]
[1765412427010,0.00283083,3316.1,3316.0,1.97752261]
[1765412428999,1.43621671,3316.9,3316.8,1.41]
[1765412429413,1.43621671,3316.9,3316.8,0.6977]
[1765412429614,1.3806,3316.8,3316.7,0.85352]
[1765412430212,1.38407524,3316.8,3316.7,0.85352]
[1765412430713,1.38407524,3316.8,3316.7,1.56582]
[1765412430714,0.00347524,3316.8,3316.7,1.56582]
[1765412430910,1.38407524,3316.8,3316.7,0.85352]
[1765412431412,1.38407524,3316.8,3316.7,0.15072]
[1765412432014,0.67567524,3316.8,3316.7,1.56582]
[1765412432307,1.38407524,3316.8,3316.7,0.15072]
[1765412432506,0.00347524,3316.8,3316.0,5.03607261]
[1765412432806,3.2078,3316.7,3316.0,4.33327261]
[1765412433007,3.2078,3316.7,3316.6,1.56582]
[1765412433403,3.88,3316.7,3316.6,1.56582]
[1765412434004,3.2078,3316.7,3316.6,1.56582]
[1765412434207,0.00347524,3316.8,3316.7,1.56582]
[1765412435409,0.67567524,3316.8,3316.7,1.56582]
[1765412435810,1.38407524,3316.8,3316.7,1.56582]
[1765412436015,1.38407524,3316.8,3316.7,0.85352]
[1765412436210,1.38407524,3316.8,3316.7,0.15072]
[1765412436714,1.38407524,3316.8,3316.7,0.85352]
[1765412437222,1.38407524,3316.8,3316.7,1.56582]
[1765412438111,0.00347524,3316.8,3316.7,1.56582]
[1765412442217,3.2078,3317.1,3317.0,1.99721]
[1765412442218,3.08657985,3317.1,3317.0,1.99721]
[1765412442418,3.88,3317.6,3317.5,1.4151]
[1765412442619,4.5884,3317.6,3317.5,1.4151]
[1765412443214,4.5918641,3317.6,3317.5,1.4151]
[1765412443412,3.2112641,3317.6,3317.5,1.99718]
[1765412443615,0.0034641,3317.6,3317.5,1.99718]
[1765412444419,1.3840641,3317.6,3317.5,0.85348]
[1765412444621,1.3840641,3317.6,3317.5,0.15068]
[1765412446715,1.3806,3317.3,3317.2,0.00452365]
[1765412447017,4.5884,3317.3,3317.2,0.00452365]
[1765412450721,5.65624725,3317.3,3317.2,0.00452365]
[1765412451222,0.6722,3316.2,3316.1,4.77365]
[1765412451418,1.3806,3316.2,3316.1,4.77365]
[1765412451922,1.3806,3316.2,3316.1,1.56585]
[1765412451923,0.6722,3316.2,3316.1,1.56585]
[1765412452522,1.3806,3316.2,3316.1,1.56585]
[1765412453119,1.3806,3316.2,3316.1,0.15075]
[1765412453323,3.2078,3316.7,3316.6,1.4151]
[1765412453522,3.06304727,3316.7,3316.6,1.4151]
[1765412454123,3.73524727,3316.7,3316.6,1.4151]
[1765412454324,4.44364727,3316.7,3316.6,0.15072]
[1765412456018,4.44364727,3316.7,3316.0,0.42157261]
[1765412456221,1.3806,3316.1,3316.0,1.41837261]
[1765412457025,1.3806,3316.1,3316.0,0.85682261]
[1765412457420,1.3806,3316.1,3316.0,1.56912261]
[1765412459729,1.3502,3316.1,3316.0,1.56912261]
[1765412459929,0.6722,3316.1,3316.0,1.98802261]
[1765412460432,1.3502,3316.1,3316.0,1.56912261]
[1765412460626,1.3502,3316.1,3316.0,1.57212261]
[1765412460931,1.3502,3316.1,3316.0,0.83492261]
[1765412461930,1.3502,3316.1,3316.0,1.57212261]
[1765412463433,1.3502,3316.1,3316.0,0.15402261]
[1765412463827,2.43556843,3316.1,3316.0,0.15402261]
[1765412464028,4.5756,3316.3,3316.2,1.56884]
[1765412464228,3.2078,3316.3,3316.2,1.56884]
[1765412464532,3.8976,3316.7,3316.6,1.4181]
[1765412465135,4.5756,3316.7,3316.6,1.4181]
[1765412465634,4.5756,3316.7,3316.6,1.56882]
[1765412466235,4.5756,3316.7,3316.6,0.83162]
[1765412466530,4.5756,3316.7,3316.6,0.15072]
[1765412467534,4.5756,3316.7,3316.6,0.83162]
[1765412467724,4.5756,3316.7,3316.6,0.15072]
[1765412467925,4.5756,3316.7,3316.6,0.83162]
[1765412468328,4.5756,3316.7,3316.6,1.56882]
[1765412468532,4.5756,3316.7,3316.6,0.15072]
[1765412469430,1.3678,3316.1,3316.0,0.15402261]
[1765412469635,3.2078,3316.7,3316.0,0.42507261]
[1765412469831,1.3678,3316.5,3316.4,1.56883]
[1765412470333,1.7876,3316.5,3316.4,0.83163]
[1765412470534,1.7876,3316.5,3316.4,1.50803]
[1765412470735,1.3678,3316.5,3316.4,1.50803]
[1765412471039,1.7876,3316.5,3316.4,0.83163]
[1765412471231,1.7876,3316.5,3316.4,0.15073]
[1765412471932,1.7876,3316.5,3316.4,1.54473]
[1765412472132,1.3678,3316.5,3316.4,1.54473]
[1765412472331,1.7876,3316.5,3316.4,0.15073]
[1765412472826,1.7876,3316.5,3316.4,0.86833]
[1765412473834,1.3678,3316.5,3316.4,1.54473]
[1765412474335,2.45294677,3316.5,3316.4,1.54473]
[1765412475032,2.87274677,3316.5,3316.4,0.15073]
[1765412477434,1.4206,3316.1,3316.0,0.00327261]
[1765412477626,2.50574677,3316.1,3316.0,1.39727261]
[1765412477829,2.50574677,3316.1,3316.0,0.72087261]
[1765412478737,2.50574677,3316.1,3316.0,0.15402261]
[1765412479134,8.50574677,3316.1,3315.0,3.2602803]
[1765412479341,3.2078,3315.3,3315.2,1.54479]
[1765412479639,4.6284,3315.7,3315.6,1.54477]
[1765412479830,5.71381719,3315.7,3315.6,1.54477]
[1765412480244,3.2078,3315.7,3315.6,1.54850506]
[1765412480932,0.00452365,3315.9,3315.8,1.54476]
[1765412482739,1.42512365,3315.9,3315.8,1.54476]
[1765412482942,0.00452365,3315.9,3315.8,1.54476]
[1765412485439,3.2078,3316.5,3316.4,1.54473]
[1765412486138,1.4206,3316.9,3316.8,0.86831]
[1765412486347,2.50561794,3316.9,3316.8,0.86831]
[1765412486543,2.50561794,3316.9,3315.6,0.00373506]
[1765412486544,1.4206,3315.7,3315.6,0.00373506]
[1765412486842,4.6284,3315.7,3314.5,3.82324301]
[1765412487040,0.4198,3315.5,3314.5,3.82324301]
[1765412487348,1.08553266,3315.4,3314.5,3.82324301]
[1765412487544,1.4206,3315.2,3315.1,0.86839]
[1765412487840,0.00303603,3315.2,3315.1,1.54826767]
[1765412488038,1.61113997,3316.3,3315.1,1.54826767]
[1765412488039,0.6873,3316.0,3315.9,1.53586]
[1765412488238,1.3593,3316.0,3315.9,1.53586]
[1765412488749,1.77261172,3316.0,3315.9,1.53586]
[1765412488950,1.08858207,3316.0,3315.9,1.53586]
[1765412489946,1.75328207,3316.0,3315.9,1.53586]
[1765412490348,2.42528207,3316.0,3315.9,1.53586]
[1765412490738,2.42528207,3316.0,3315.9,0.15076]
[1765412490943,1.3367,3315.3,3315.2,0.88679]
[1765412491143,1.3367,3315.2,3315.1,0.00347767]
[1765412491352,2.42227305,3315.2,3315.1,0.00347767]
[1765412494249,1.3367,3314.6,3314.5,0.19844301]
[1765412494456,4.5445,3314.6,3314.5,1.60194301]
[1765412494943,4.5445,3314.6,3314.5,0.93444301]
[1765412495147,4.5445,3314.6,3314.5,0.20114617]
[1765412496658,5.63030743,3314.6,3314.5,0.20114617]
[1765412496846,1.3367,3313.9,3313.8,0.15085]
[1765412497048,3.2078,3314.1,3314.0,0.15084]
[1765412497251,3.8725,3314.1,3314.0,1.95954]
[1765412497449,4.5445,3314.1,3314.0,0.15084]
[1765412497851,4.5445,3314.1,3314.0,0.1535139]
[1765412499054,4.5445,3314.1,3314.0,0.0026739]
[1765412500158,4.5445,3314.1,3314.0,0.7386739]
[1765412500360,4.5445,3314.1,3314.0,0.0026739]
[1765412500862,4.5445,3314.1,3314.0,1.4061739]
[1765412501457,4.5445,3314.1,3314.0,1.5570139]
[1765412501858,4.5445,3314.1,3314.0,0.8895139]
[1765412502166,4.5445,3314.1,3314.0,0.1535139]
[1765412503359,4.5445,3314.1,3314.0,0.0026739]
[1765412503753,4.5445,3314.1,3314.0,0.7386739]
[1765412503958,4.5445,3314.1,3314.0,0.0026739]
[1765412505458,3.2078,3314.1,3314.0,1.4061739]
[1765412505663,3.8725,3314.1,3314.0,1.5570139]
[1765412505863,3.2078,3314.1,3314.0,1.9622139]
[1765412506265,4.5445,3314.1,3314.0,0.1535139]
[1765412506763,4.5445,3314.1,3314.0,0.8895139]
[1765412506963,3.8725,3314.1,3314.0,1.5570139]
[1765412507161,3.8725,3314.1,3314.0,1.9622139]
[1765412507360,4.5445,3314.1,3314.0,0.1535139]
[1765412508663,0.4078,3314.0,3313.5,1.4035]
[1765412508860,0.4078,3314.0,3313.7,1.55435]
[1765412508861,0.6647,3313.8,3313.7,1.55435]
[1765412509055,4.5445,3313.8,3313.7,1.55435]
[1765412509264,4.5445,3313.8,3313.7,0.88685]
[1765412509756,4.5445,3313.8,3313.7,1.55644309]
[1765412510361,3.8725,3313.8,3313.7,1.55644309]
[1765412512163,3.2078,3313.8,3313.7,1.55644309]
[1765412512372,3.8725,3313.8,3313.7,1.55644309]
[1765412512870,3.2078,3313.8,3313.7,1.55644309]
[1765412513173,3.8725,3313.8,3313.7,1.55644309]
[1765412513569,4.5445,3313.8,3313.7,0.88894309]
[1765412513769,4.5445,3313.8,3313.7,1.55644309]
[1765412514577,5.63052612,3313.8,3313.7,0.00209309]
[1765412514867,13.39251609,3313.8,3313.7,0.00209309]
[1765412515068,13.24166609,3313.8,3313.7,0.00209309]
[1765412515273,5.63052612,3313.8,3313.7,0.00209309]
[1765412515470,7.24166609,3313.8,3313.7,0.00209309]
[1765412515975,5.63052612,3313.8,3313.7,0.00209309]
[1765412516487,5.63071759,3313.8,3313.7,0.00209309]
[1765412516767,11.63071759,3313.8,3313.7,0.00209309]
[1765412516967,5.63071759,3313.8,3313.7,0.00209309]
[1765412517172,5.63071759,3313.8,3313.7,1.55645309]
[1765412517771,5.63071759,3313.8,3313.7,0.88895309]
[1765412517971,5.63071759,3313.8,3313.7,0.15295309]
[1765412518675,0.00452365,3314.2,3314.1,1.54374]
[1765412518875,0.71872365,3314.2,3314.1,1.54374]
[1765412519188,1.40672365,3314.2,3314.1,0.84164]
[1765412519371,2.49256959,3314.2,3314.1,0.15084]
[1765412519576,5.70036959,3314.2,3314.1,0.15084]
[1765412519773,5.70036959,3314.2,3314.1,0.84164]
[1765412520173,5.70036959,3314.2,3314.1,0.15084]
[1765412520380,5.70036959,3314.2,3313.7,0.00209309]
[1765412520381,1.4022,3313.8,3313.7,0.00209309]
[1765412520579,2.48804594,3313.8,3313.7,0.00209309]
[1765412521079,5.69584594,3313.8,3313.7,0.00209309]
[1765412521282,7.29982732,3313.8,3313.7,0.00209309]
[1765412521583,5.69584594,3313.8,3313.7,0.00209309]
[1765412522674,6.61737989,3313.8,3313.7,1.39499309]
[1765412522982,7.30537989,3313.8,3313.7,0.15295309]
[1765412523277,7.30537989,3313.8,3313.7,0.84375309]
[1765412523676,7.30537989,3313.8,3313.7,0.15295309]
[1765412524181,2.69537989,3313.8,3313.7,1.54585309]
[1765412524374,1.08584594,3313.8,3313.7,1.54585309]
[1765412524572,0.00452365,3314.2,3314.1,1.54374]
[1765412529385,0.00452365,3314.2,3314.1,13.54274]
[1765412529880,0.00452365,3314.2,3314.1,19.54274]
[1765412530386,3.2078,3315.0,3314.9,1.4305]
[1765412530581,1.3744,3315.4,3315.3,0.15078]
[1765412531982,1.3744,3315.1,3315.0,0.00452365]
[1765412532687,3.4636,3315.5,3315.4,0.15078]
[1765412532688,4.5822,3315.5,3315.4,0.15078]
[1765412532980,4.838,3315.5,3315.4,0.15078]
[1765412533887,1.3744,3315.1,3315.0,0.00452365]
[1765412535488,4.5822,3315.1,3315.0,0.00452365]
[1765412535984,3.9111,3315.1,3315.0,1.58582365]
[1765412536290,3.2078,3315.1,3315.0,2.02692365]
[1765412536789,3.9111,3315.1,3315.0,2.02692365]
[1765412537087,3.2078,3315.1,3315.0,2.02692365]
[1765412537689,3.9111,3315.6,3315.5,1.4305]
[1765412537884,4.5822,3315.6,3315.5,0.7095]
[1765412538190,3.9111,3315.6,3315.5,1.58127]
[1765412539084,4.5822,3315.6,3315.5,0.15077]
[1765412541885,1.3744,3315.1,3315.0,0.00452365]
[1765412543092,0.7033,3315.1,3315.0,1.43502365]
[1765412543288,1.3744,3315.1,3315.0,1.43502365]
[1765412543592,1.3744,3315.1,3315.0,0.00452365]
[1765412543793,1.3744,3315.1,3315.0,0.71402365]
[1765412543994,1.3744,3315.1,3315.0,1.43502365]
[1765412544296,0.7033,3315.1,3315.0,1.43502365]
[1765412544494,0.7033,3315.1,3315.0,1.58582365]
[1765412545293,1.3744,3315.1,3315.0,1.58582365]
[1765412545796,0.7033,3315.1,3315.0,1.58582365]
[1765412546093,3.2078,3315.2,3315.0,1.58582365]
[1765412546094,3.9111,3315.2,3315.1,1.58129]
[1765412546294,4.5822,3315.2,3315.1,1.58129]
[1765412546694,4.5822,3315.2,3315.1,0.86029]
[1765412546994,4.5822,3315.2,3315.1,1.58129]
[1765412547187,3.9111,3315.2,3315.1,1.58129]
[1765412548098,4.5822,3315.2,3315.1,1.58129]
[1765412548297,4.5822,3315.2,3315.1,0.15079]